[Event "European Rapid Championship 2021"]
[Site "Katowice"]
[Date "2021.12.19"]
[Round "10.18"]
[White "Dragnev, Valentin"]
[Black "Sanz Wawer, Daniel"]
[Result "1-0"]
[ECO "B11"]
[WhiteElo "2409"]
[BlackElo "2371"]
[Annotator "NA"]
[PlyCount "127"]
[EventDate "2021.12.18"]
[EventType "swiss"]
[EventCountry "POL"]
[SourceTitle "playchess.com"]
[Source "ChessBase"]
[SourceQuality "1"]
[TimeControl "900+10"]

1. e4 {[%emt 0:00:01]} c6 {[%emt 0:00:01]} 2. Nc3 {[%emt 0:00:07]} d5 {[%emt 0:
00:02]} 3. Nf3 {[%emt 0:00:01]} Bg4 {[%emt 0:00:02]} 4. h3 {[%emt 0:00:02]}
Bxf3 {[%emt 0:00:01]} 5. Qxf3 {[%emt 0:00:01]} Nf6 {[%emt 0:00:01]} 6. Be2 {
[%emt 0:00:04]} e6 {[%emt 0:00:05]} 7. O-O {[%emt 0:00:04]} Be7 {[%emt 0:00:02]
} 8. Rd1 {[%emt 0:00:11]} d4 {[%emt 0:01:03]} 9. Nb1 {[%emt 0:00:03]} O-O {
[%emt 0:00:08]} 10. d3 {[%emt 0:00:02]} e5 {[%emt 0:00:25]} 11. Qg3 {[%emt 0:
00:50]} Nbd7 {[%emt 0:00:02]} 12. Nd2 {[%emt 0:00:48]} b5 {[%emt 0:00:26]} 13.
Nf3 {[%emt 0:01:00]} Qb8 {[%emt 0:00:26]} 14. Nh4 {[%emt 0:00:38]} Re8 {
[%emt 0:02:12]} 15. Nf5 {[%emt 0:00:37]} g6 {[%emt 0:00:02]} 16. Nxe7+ {
[%emt 0:00:38]} Rxe7 {[%emt 0:00:01]} 17. Bg5 {[%emt 0:00:22]} Re8 {[%emt 0:00:
59]} 18. Rf1 {[%emt 0:03:30]} Qb6 {[%emt 0:00:04]} 19. Qh4 {[%emt 0:00:48]} Kg7
{[%emt 0:01:16]} 20. Bh6+ {[%emt 0:02:05]} Kh8 {[%emt 0:00:18]} 21. Bg5 {
[%emt 0:00:19]} Kg7 {[%emt 0:00:02]} 22. Bh6+ {[%emt 0:02:50]} Kh8 {[%emt 0:00:
04]} 23. Kh1 {[%emt 0:00:11]} Ng8 {[%emt 0:00:39]} 24. Bd2 {[%emt 0:00:02]} f6
{[%emt 0:00:35]} 25. c3 {[%emt 0:00:31]} c5 {[%emt 0:00:20]} 26. cxd4 {[%emt 0:
00:11]} cxd4 {[%emt 0:00:24]} 27. f4 {[%emt 0:00:14]} exf4 {[%emt 0:00:43]} 28.
Qxf4 {[%emt 0:00:02]} Ne5 {[%emt 0:00:17]} 29. Rac1 {[%emt 0:00:03]} Rac8 {
[%emt 0:00:15]} 30. Qf2 {[%emt 0:00:03]} Qd6 {[%emt 0:00:16]} 31. Bf4 {[%emt 0:
00:14]} Kg7 {[%emt 0:00:09]} 32. Bh2 {[%emt 0:00:24]} Ne7 {[%emt 0:00:25]} 33.
a3 {[%emt 0:00:13]} Rxc1 {[%emt 0:00:19]} 34. Rxc1 {[%emt 0:00:02]} Rc8 {
[%emt 0:00:06]} 35. Rxc8 {[%emt 0:00:27]} Nxc8 {[%emt 0:00:02]} 36. Bg1 {
[%emt 0:00:02]} Nc6 {[%emt 0:00:02]} 37. Bg4 {[%emt 0:00:06]} Nb6 {[%emt 0:00:
36]} 38. Qc2 {[%emt 0:00:11]} Na4 {[%emt 0:01:54]} 39. Qb3 {[%emt 0:01:06]} a6
{[%emt 0:00:15]} 40. Qd5 {[%emt 0:00:32]} Qxd5 {[%emt 0:02:11]} 41. exd5 {
[%emt 0:00:01]} Ne7 {[%emt 0:01:38]} 42. d6 {[%emt 0:00:16]} Nc6 {[%emt 0:00:
02]} 43. Bf3 {[%emt 0:00:24]} Ne5 {[%emt 0:00:01]} 44. Bxd4 {[%emt 0:00:10]}
Nd7 {[%emt 0:00:01]} 45. Bc6 {[%emt 0:00:53]} Nac5 {[%emt 0:00:31]} 46. b4 {
[%emt 0:00:49]} Ne6 {[%emt 0:00:01]} 47. Be3 {[%emt 0:00:15]} Nb8 {[%emt 0:00:
55]} 48. Bb7 {[%emt 0:00:09]} Nd8 {[%emt 0:00:26]} 49. Bc8 {[%emt 0:00:01]}
Ndc6 {[%emt 0:00:47]} 50. Bb6 {[%emt 0:00:03]} Kf7 {[%emt 0:00:08]} 51. Bc7 {
[%emt 0:00:14]} Ke8 {[%emt 0:00:24]} 52. d4 {[%emt 0:00:03]} Nd7 {[%emt 0:00:
48]} 53. d5 {[%emt 0:00:11]} Ncb8 {[%emt 0:00:19]} 54. Kg1 {[%emt 0:00:07]} Kf7
{[%emt 0:00:15]} 55. Kf2 {[%emt 0:00:06]} Ke8 {[%emt 0:00:19]} 56. Ke3 {
[%emt 0:00:03]} Kf7 {[%emt 0:00:01]} 57. Kd4 {[%emt 0:00:07]} Ke8 {[%emt 0:00:
02]} 58. Kc3 {[%emt 0:00:39]} h6 {[%emt 0:00:06]} 59. Kb3 {[%emt 0:00:11]} Kf7
{[%emt 0:00:05]} 60. a4 {[%emt 0:00:04]} bxa4+ {[%emt 0:00:24]} 61. Kxa4 {
[%emt 0:00:03]} f5 {[%emt 0:00:01]} 62. Ka5 {[%emt 0:00:27]} f4 {[%emt 0:00:24]
} 63. Bxb8 {[%emt 0:00:07]} Nxb8 {[%emt 0:00:02]} 64. Kb6 {[%emt 0:00:01]} 1-0

[Event "European Rapid Championship 2021"]
[Site "Katowice"]
[Date "2021.12.19"]
[Round "10.18"]
[White "Krawczyk, Wojciech"]
[Black "Batashevs, Arsens"]
[Result "1/2-1/2"]
[ECO "A43"]
[WhiteElo "1868"]
[BlackElo "2165"]
[Annotator "NA"]
[PlyCount "139"]
[EventDate "2021.12.18"]
[EventType "swiss"]
[EventCountry "POL"]
[SourceTitle "playchess.com"]
[Source "ChessBase"]
[SourceQuality "1"]
[TimeControl "900+10"]

1. c4 {[%emt 0:00:05]} g6 {[%emt 0:00:08]} 2. d4 {[%emt 0:00:05]} Bg7 {[%emt 0:
00:01]} 3. Nc3 {[%emt 0:00:01]} c5 {[%emt 0:00:01]} 4. d5 {[%emt 0:00:12]}
Bxc3+ {[%emt 0:00:01]} 5. bxc3 {[%emt 0:00:01]} f5 {[%emt 0:00:01]} 6. Nf3 {
[%emt 0:00:13]} Qa5 {[%emt 0:00:00]} 7. Bd2 {[%emt 0:00:11]} Nf6 {[%emt 0:00:
06]} 8. e3 {[%emt 0:00:14]} d6 {[%emt 0:00:01]} 9. Bd3 {[%emt 0:00:06]} Nbd7 {
[%emt 0:00:01]} 10. O-O {[%emt 0:00:36]} Nb6 {[%emt 0:00:01]} 11. Re1 {[%emt 0:
01:58]} Qa6 {[%emt 0:00:08]} 12. Qe2 {[%emt 0:01:02]} Ne4 {[%emt 0:00:52]} 13.
a4 {[%emt 0:00:31]} Bd7 {[%emt 0:01:13]} 14. a5 {[%emt 0:00:10]} Na4 {[%emt 0:
00:43]} 15. Bxe4 {[%emt 0:02:14]} fxe4 {[%emt 0:00:09]} 16. Ng5 {[%emt 0:00:01]
} Nb2 {[%emt 0:00:31]} 17. Nxe4 {[%emt 0:00:35]} Qxc4 {[%emt 0:00:18]} 18. Qxc4
{[%emt 0:01:31]} Nxc4 {[%emt 0:00:01]} 19. Bc1 {[%emt 0:00:01]} O-O {[%emt 0:
01:05]} 20. Nd2 {[%emt 0:01:16]} Ne5 {[%emt 0:01:17]} 21. Rb1 {[%emt 0:00:52]}
Rfb8 {[%emt 0:04:33]} 22. e4 {[%emt 0:00:35]} b6 {[%emt 0:00:08]} 23. axb6 {
[%emt 0:00:17]} axb6 {[%emt 0:00:33]} 24. g3 {[%emt 0:01:03]} Ra2 {[%emt 0:00:
38]} 25. Re3 {[%emt 0:00:19]} Rba8 {[%emt 0:02:23]} 26. f4 {[%emt 0:01:07]} Ng4
{[%emt 0:00:01]} 27. Re1 {[%emt 0:00:01]} b5 {[%emt 0:01:08]} 28. e5 {[%emt 0:
00:33]} Rc2 {[%emt 0:00:35]} 29. Rb2 {[%emt 0:01:52]} Rxb2 {[%emt 0:00:46]} 30.
Bxb2 {[%emt 0:00:01]} Ra2 {[%emt 0:00:01]} 31. Bc1 {[%emt 0:00:12]} Bf5 {
[%emt 0:01:27]} 32. h3 {[%emt 0:00:48]} Nh6 {[%emt 0:00:00]} 33. g4 {[%emt 0:
00:23]} Bd3 {[%emt 0:00:02]} 34. exd6 {[%emt 0:00:12]} exd6 {[%emt 0:00:01]}
35. Ne4 {[%emt 0:00:05]} Bxe4 {[%emt 0:00:12]} 36. Rxe4 {[%emt 0:00:02]} Ra1 {
[%emt 0:00:12]} 37. Re1 {[%emt 0:00:03]} Kf7 {[%emt 0:00:15]} 38. Kf2 {[%emt 0:
00:03]} Ng8 {[%emt 0:00:01]} 39. f5 {[%emt 0:01:00]} gxf5 {[%emt 0:00:04]} 40.
gxf5 {[%emt 0:00:01]} Ne7 {[%emt 0:00:03]} 41. Bf4 {[%emt 0:01:04]} Rxe1 {
[%emt 0:00:43]} 42. Kxe1 {[%emt 0:00:02]} Nxd5 {[%emt 0:00:08]} 43. Bxd6 {
[%emt 0:00:08]} c4 {[%emt 0:00:01]} 44. Be5 {[%emt 0:00:01]} Ne3 {[%emt 0:00:
01]} 45. f6 {[%emt 0:00:08]} Nd5 {[%emt 0:00:00]} 46. Kf2 {[%emt 0:00:05]} Nxf6
{[%emt 0:00:11]} 47. Kf3 {[%emt 0:00:01]} Ke6 {[%emt 0:00:04]} 48. Bg3 {
[%emt 0:00:13]} Kf5 {[%emt 0:00:15]} 49. Ke3 {[%emt 0:00:11]} Ne4 {[%emt 0:00:
01]} 50. Be1 {[%emt 0:00:03]} Ke5 {[%emt 0:00:03]} 51. h4 {[%emt 0:00:06]} h5 {
[%emt 0:00:02]} 52. Kf3 {[%emt 0:00:01]} b4 {[%emt 0:01:45]} 53. cxb4 {[%emt 0:
00:12]} Kd4 {[%emt 0:00:49]} 54. b5 {[%emt 0:00:07]} Nd6 {[%emt 0:00:06]} 55.
b6 {[%emt 0:00:06]} Kc5 {[%emt 0:00:05]} 56. Bf2+ {[%emt 0:00:14]} Kb5 {
[%emt 0:00:12]} 57. Kf4 {[%emt 0:00:08]} c3 {[%emt 0:00:01]} 58. Be3 {[%emt 0:
00:44]} Kc6 {[%emt 0:00:13]} 59. Kg5 {[%emt 0:00:15]} Nc4 {[%emt 0:00:10]} 60.
Bc1 {[%emt 0:00:01]} Kxb6 61. Kxh5 {[%emt 0:00:02]} Kc5 {[%emt 0:00:35]} 62.
Kg5 {[%emt 0:00:08]} Kd5 {[%emt 0:00:07]} 63. h5 {[%emt 0:00:01]} Ne5 {[%emt 0:
00:02]} 64. Kf5 {[%emt 0:00:24]} Nf7 {[%emt 0:00:05]} 65. Kf6 Ne5 66. h6 {
[%emt 0:00:11]} Ng4+ {[%emt 0:00:02]} 67. Kg7 {[%emt 0:00:01]} Nxh6 {[%emt 0:
00:01]} 68. Bxh6 {[%emt 0:00:01]} c2 {[%emt 0:00:01]} 69. Kh7 {[%emt 0:00:01]}
c1=Q {[%emt 0:00:02]} 70. Bxc1 1/2-1/2

[Event "European Rapid Championship 2021"]
[Site "Katowice"]
[Date "2021.12.19"]
[Round "10.19"]
[White "Danielyan, Vahe"]
[Black "Kjartansson, Gudmundur"]
[Result "0-1"]
[ECO "B10"]
[WhiteElo "2198"]
[BlackElo "2402"]
[Annotator "NA"]
[PlyCount "78"]
[EventDate "2021.12.18"]
[EventType "swiss"]
[EventCountry "POL"]
[SourceTitle "playchess.com"]
[Source "ChessBase"]
[SourceQuality "1"]
[TimeControl "900+10"]

1. e4 {[%emt 0:00:06]} c6 {[%emt 0:00:02]} 2. Nc3 {[%emt 0:00:12]} d5 {[%emt 0:
00:01]} 3. Nf3 {[%emt 0:00:02]} dxe4 {[%emt 0:00:04]} 4. Nxe4 {[%emt 0:00:02]}
Nf6 {[%emt 0:00:01]} 5. Ng3 {[%emt 0:00:03]} h5 {[%emt 0:00:25]} 6. Bc4 {
[%emt 0:00:02]} h4 {[%emt 0:00:44]} 7. Nf1 {[%emt 0:00:03]} h3 {[%emt 0:01:02]}
8. g3 {[%emt 0:00:01]} Nbd7 {[%emt 0:00:41]} 9. Ne3 {[%emt 0:00:16]} b5 {
[%emt 0:00:23]} 10. Be2 {[%emt 0:00:08]} Bb7 {[%emt 0:00:11]} 11. a4 {[%emt 0:
00:04]} a6 {[%emt 0:00:01]} 12. b3 {[%emt 0:00:19]} g6 {[%emt 0:01:16]} 13. Bb2
{[%emt 0:00:19]} Bg7 {[%emt 0:00:01]} 14. O-O {[%emt 0:00:22]} Qb6 {[%emt 0:00:
10]} 15. d4 {[%emt 0:01:20]} O-O {[%emt 0:02:06]} 16. a5 {[%emt 0:01:50]} Qc7 {
[%emt 0:00:18]} 17. b4 {[%emt 0:00:02]} Rad8 {[%emt 0:00:06]} 18. c4 {[%emt 0:
02:21]} bxc4 {[%emt 0:00:03]} 19. Qc2 {[%emt 0:00:01]} Nd5 {[%emt 0:01:32]} 20.
Qxc4 {[%emt 0:00:26]} Qd6 {[%emt 0:00:24]} 21. Rac1 {[%emt 0:01:59]} e5 {
[%emt 0:02:32]} 22. Nxd5 {[%emt 0:00:41]} cxd5 {[%emt 0:00:05]} 23. Qc7 {
[%emt 0:00:09]} Qxb4 {[%emt 0:02:14]} 24. Bc3 {[%emt 0:00:02]} Qe7 {[%emt 0:00:
01]} 25. Qxb7 {[%emt 0:00:35]} exd4 {[%emt 0:00:20]} 26. Bb4 {[%emt 0:04:22]}
Qxe2 {[%emt 0:00:04]} 27. Ng5 {[%emt 0:00:03]} Rb8 {[%emt 0:02:11]} 28. Qxd7 {
[%emt 0:01:27]} Rxb4 {[%emt 0:00:01]} 29. Rc8 {[%emt 0:01:14]} Rxc8 {[%emt 0:
00:03]} 30. Qxf7+ {[%emt 0:00:02]} Kh8 {[%emt 0:00:00]} 31. Qxg6 {[%emt 0:00:
01]} Qc2 {[%emt 0:00:14]} 32. Nf7+ {[%emt 0:01:34]} Kg8 {[%emt 0:00:01]} 33.
Nh6+ {[%emt 0:00:01]} Kh8 {[%emt 0:00:01]} 34. Nf7+ {[%emt 0:00:02]} Kg8 {
[%emt 0:00:01]} 35. Nh6+ {[%emt 0:00:00]} Kh8 {[%emt 0:00:03]} 36. Nf5 {
[%emt 0:00:44]} Rb7 {[%emt 0:00:04]} 37. Re1 {[%emt 0:00:04]} Qe4 {[%emt 0:00:
09]} 38. Qh5+ Kg8 39. Rf1 {[%emt 0:00:30]} Qg2# {[%emt 0:00:01]} 0-1

[Event "European Rapid Championship 2021"]
[Site "Katowice"]
[Date "2021.12.19"]
[Round "10.19"]
[White "Nemec, Jachym"]
[Black "Malik, Maciej"]
[Result "0-1"]
[ECO "E71"]
[WhiteElo "2115"]
[BlackElo "1849"]
[Annotator "NA"]
[PlyCount "64"]
[EventDate "2021.12.18"]
[EventType "swiss"]
[EventCountry "POL"]
[SourceTitle "playchess.com"]
[Source "ChessBase"]
[SourceQuality "1"]
[TimeControl "900+10"]

1. d4 {[%emt 0:00:02]} Nf6 {[%emt 0:00:10]} 2. c4 {[%emt 0:00:01]} g6 {[%emt 0:
00:06]} 3. Nc3 {[%emt 0:00:02]} Bg7 {[%emt 0:00:02]} 4. e4 {[%emt 0:00:01]} d6
{[%emt 0:00:01]} 5. h3 {[%emt 0:00:01]} O-O {[%emt 0:00:22]} 6. Be3 {[%emt 0:
00:03]} Nbd7 {[%emt 0:00:04]} 7. Nf3 {[%emt 0:00:43]} e5 {[%emt 0:00:03]} 8. d5
{[%emt 0:00:02]} a5 {[%emt 0:00:01]} 9. g4 {[%emt 0:00:08]} Nc5 {[%emt 0:00:13]
} 10. Nd2 {[%emt 0:00:01]} Ne8 {[%emt 0:02:09]} 11. Be2 {[%emt 0:01:59]} f5 {
[%emt 0:00:32]} 12. gxf5 gxf5 {[%emt 0:00:01]} 13. Qc2 {[%emt 0:01:15]} f4 {
[%emt 0:00:05]} 14. Bxc5 {[%emt 0:00:02]} dxc5 {[%emt 0:00:02]} 15. Bg4 {
[%emt 0:00:10]} Bxg4 {[%emt 0:00:40]} 16. hxg4 {[%emt 0:00:02]} f3 {[%emt 0:00:
01]} 17. O-O-O {[%emt 0:00:42]} Nd6 {[%emt 0:00:05]} 18. Rh5 {[%emt 0:01:36]}
Qf6 {[%emt 0:02:54]} 19. Nb5 {[%emt 0:01:05]} Rac8 {[%emt 0:01:30]} 20. Nxd6 {
[%emt 0:01:41]} cxd6 {[%emt 0:00:01]} 21. Rdh1 {[%emt 0:01:01]} Qg6 {[%emt 0:
00:05]} 22. g5 {[%emt 0:00:56]} Rf4 {[%emt 0:00:02]} 23. Qb3 {[%emt 0:00:25]}
Rc7 {[%emt 0:00:33]} 24. Qb6 {[%emt 0:00:15]} Rcf7 {[%emt 0:00:01]} 25. Rxh7 {
[%emt 0:00:40]} Qxg5 {[%emt 0:00:49]} 26. R7h5 {[%emt 0:01:14]} Qg6 {[%emt 0:
00:16]} 27. a3 {[%emt 0:00:34]} Rg4 {[%emt 0:00:13]} 28. Qd8+ {[%emt 0:00:35]}
Rf8 {[%emt 0:00:08]} 29. Qd7 {[%emt 0:00:02]} Rf7 {[%emt 0:02:16]} 30. Qc8+ {
[%emt 0:00:09]} Rf8 {[%emt 0:00:14]} 31. Qxb7 {[%emt 0:00:08]} Rg2 {[%emt 0:01:
26]} 32. R5h2 {[%emt 0:01:19]} Rxh2 {[%emt 0:00:03]} 0-1

[Event "European Rapid Championship 2021"]
[Site "Katowice"]
[Date "2021.12.19"]
[Round "10.20"]
[White "Semjonovs, Ilja"]
[Black "Nasuta, Grzegorz"]
[Result "1-0"]
[ECO "D03"]
[WhiteElo "2383"]
[BlackElo "2345"]
[Annotator "NA"]
[PlyCount "140"]
[EventDate "2021.12.18"]
[EventType "swiss"]
[EventCountry "POL"]
[SourceTitle "playchess.com"]
[Source "ChessBase"]
[SourceQuality "1"]
[TimeControl "900+10"]

1. d4 {[%emt 0:05:08]} d5 {[%emt 0:00:21]} 2. Nf3 {[%emt 0:00:02]} Nf6 {
[%emt 0:00:11]} 3. Bg5 {[%emt 0:00:03]} Ne4 {[%emt 0:01:15]} 4. Bf4 {[%emt 0:
00:04]} c5 {[%emt 0:00:37]} 5. c3 {[%emt 0:00:23]} e6 {[%emt 0:00:35]} 6. e3 {
[%emt 0:00:06]} Nc6 {[%emt 0:00:09]} 7. Nbd2 {[%emt 0:00:09]} Nxd2 {[%emt 0:00:
13]} 8. Qxd2 {[%emt 0:00:03]} Bd6 {[%emt 0:00:55]} 9. Bg3 {[%emt 0:00:19]} O-O
{[%emt 0:00:08]} 10. Bd3 {[%emt 0:00:08]} Qe7 {[%emt 0:00:09]} 11. O-O {
[%emt 0:00:27]} Bxg3 {[%emt 0:00:25]} 12. hxg3 {[%emt 0:00:06]} e5 {[%emt 0:00:
28]} 13. dxe5 {[%emt 0:00:23]} Nxe5 {[%emt 0:00:01]} 14. Be2 {[%emt 0:00:21]}
Rd8 {[%emt 0:00:20]} 15. Nxe5 {[%emt 0:00:24]} Qxe5 {[%emt 0:00:01]} 16. Bf3 {
[%emt 0:00:02]} Be6 {[%emt 0:00:24]} 17. Rfd1 {[%emt 0:00:15]} g5 {[%emt 0:02:
07]} 18. Qc2 {[%emt 0:01:35]} Kg7 {[%emt 0:01:14]} 19. Rd2 {[%emt 0:00:33]} Rd7
{[%emt 0:07:25]} 20. Rad1 {[%emt 0:00:12]} Rad8 {[%emt 0:00:00]} 21. Qa4 {
[%emt 0:00:18]} b6 {[%emt 0:00:07]} 22. Qa3 {[%emt 0:02:04]} h5 {[%emt 0:00:29]
} 23. b4 {[%emt 0:00:57]} c4 {[%emt 0:00:02]} 24. Rd4 {[%emt 0:00:14]} g4 {
[%emt 0:00:49]} 25. Be2 {[%emt 0:00:03]} f5 {[%emt 0:00:13]} 26. Qa4 {[%emt 0:
00:18]} Qc7 {[%emt 0:00:26]} 27. Rf4 {[%emt 0:00:57]} Kf6 {[%emt 0:00:18]} 28.
Qc2 {[%emt 0:00:06]} Qe5 {[%emt 0:00:02]} 29. Rfd4 {[%emt 0:00:45]} Rc8 {
[%emt 0:00:11]} 30. Qa4 {[%emt 0:00:09]} Rh8 {[%emt 0:00:23]} 31. Bxc4 {
[%emt 0:01:16]} h4 {[%emt 0:00:01]} 32. gxh4 Rdh7 33. Bxd5 {[%emt 0:01:11]}
Rxh4 {[%emt 0:00:02]} 34. Kf1 {[%emt 0:00:00]} Rh1+ {[%emt 0:00:01]} 35. Ke2 {
[%emt 0:00:01]} Rxd1 {[%emt 0:00:02]} 36. Qxd1 {[%emt 0:00:01]} Bxd5 {[%emt 0:
00:04]} 37. Rxd5 {[%emt 0:00:02]} Qxc3 {[%emt 0:00:01]} 38. Qd4+ {[%emt 0:00:
08]} Qxd4 {[%emt 0:00:02]} 39. Rxd4 {[%emt 0:00:01]} Rc8 {[%emt 0:00:09]} 40.
Kd2 {[%emt 0:00:11]} Rc7 {[%emt 0:00:00]} 41. f3 {[%emt 0:00:15]} gxf3 {
[%emt 0:00:06]} 42. gxf3 {[%emt 0:00:01]} Ke5 {[%emt 0:00:02]} 43. Rd8 {
[%emt 0:00:28]} Rh7 {[%emt 0:01:35]} 44. f4+ {[%emt 0:00:05]} Ke6 {[%emt 0:00:
01]} 45. Kc3 {[%emt 0:00:10]} Rh2 {[%emt 0:00:10]} 46. a4 {[%emt 0:00:05]} Ra2
{[%emt 0:00:03]} 47. Kb3 {[%emt 0:00:05]} Re2 {[%emt 0:00:26]} 48. Re8+ {
[%emt 0:00:02]} Kf6 {[%emt 0:00:04]} 49. Kc4 {[%emt 0:00:21]} Ra2 {[%emt 0:00:
01]} 50. Kb3 {[%emt 0:00:24]} Re2 {[%emt 0:00:14]} 51. Re5 {[%emt 0:00:03]} Re1
{[%emt 0:00:03]} 52. Kc4 {[%emt 0:00:21]} Rb1 {[%emt 0:00:07]} 53. a5 {[%emt 0:
00:51]} bxa5 {[%emt 0:00:17]} 54. Rxa5 {[%emt 0:00:02]} Rc1+ {[%emt 0:00:03]}
55. Kb5 {[%emt 0:01:10]} Rc7 {[%emt 0:00:04]} 56. Ka6 {[%emt 0:00:25]} Re7 {
[%emt 0:00:04]} 57. b5 {[%emt 0:00:13]} Rxe3 {[%emt 0:00:44]} 58. Kxa7 {
[%emt 0:00:02]} Re4 {[%emt 0:00:01]} 59. b6 {[%emt 0:00:02]} Rxf4 {[%emt 0:00:
10]} 60. Rb5 {[%emt 0:00:26]} Ra4+ {[%emt 0:00:02]} 61. Kb7 {[%emt 0:00:00]} f4
{[%emt 0:00:09]} 62. Kc6 {[%emt 0:00:03]} Rc4+ {[%emt 0:00:31]} 63. Rc5 {
[%emt 0:00:02]} Rb4 {[%emt 0:00:02]} 64. b7 {[%emt 0:00:04]} f3 {[%emt 0:00:16]
} 65. Rc3 {[%emt 0:00:15]} f2 {[%emt 0:00:12]} 66. Rf3+ {[%emt 0:00:01]} Ke6 {
[%emt 0:00:03]} 67. Rxf2 {[%emt 0:00:01]} Rc4+ {[%emt 0:00:01]} 68. Kb5 {
[%emt 0:00:07]} Rc1 {[%emt 0:00:02]} 69. Rb2 {[%emt 0:00:02]} Rb1 {[%emt 0:00:
10]} 70. Rxb1 {[%emt 0:00:02]} Kd5 1-0

[Event "European Rapid Championship 2021"]
[Site "Katowice"]
[Date "2021.12.19"]
[Round "10.20"]
[White "Kubicka, Anna"]
[Black "Warchol, Kamil"]
[Result "1-0"]
[ECO "B20"]
[WhiteElo "2273"]
[BlackElo "1976"]
[Annotator "NA"]
[PlyCount "131"]
[EventDate "2021.12.18"]
[EventType "swiss"]
[EventCountry "POL"]
[SourceTitle "playchess.com"]
[Source "ChessBase"]
[SourceQuality "1"]
[TimeControl "900+10"]

1. e4 {[%emt 0:00:01]} c5 {[%emt 0:00:02]} 2. Ne2 {[%emt 0:00:01]} e6 {[%emt 0:
00:09]} 3. g3 {[%emt 0:00:01]} d5 {[%emt 0:00:39]} 4. Bg2 {[%emt 0:00:02]} dxe4
{[%emt 0:00:47]} 5. Bxe4 {[%emt 0:00:02]} Nf6 {[%emt 0:00:03]} 6. Bg2 {[%emt 0:
00:01]} Bd6 {[%emt 0:00:34]} 7. O-O {[%emt 0:00:05]} O-O {[%emt 0:00:20]} 8.
Nbc3 {[%emt 0:00:02]} a6 {[%emt 0:00:20]} 9. d4 {[%emt 0:00:18]} Qc7 {[%emt 0:
00:38]} 10. Bg5 {[%emt 0:00:40]} Nbd7 {[%emt 0:00:27]} 11. h3 {[%emt 0:03:09]}
h6 {[%emt 0:00:39]} 12. Be3 {[%emt 0:00:02]} Rb8 {[%emt 0:01:13]} 13. a4 {
[%emt 0:00:23]} c4 {[%emt 0:02:02]} 14. a5 {[%emt 0:00:48]} b5 {[%emt 0:00:37]}
15. axb6 {[%emt 0:01:06]} Nxb6 {[%emt 0:00:02]} 16. Nf4 {[%emt 0:00:30]} Bb7 {
[%emt 0:00:41]} 17. Nh5 {[%emt 0:00:22]} Nxh5 {[%emt 0:01:12]} 18. Qxh5 {
[%emt 0:00:02]} Bxg2 {[%emt 0:00:05]} 19. Kxg2 {[%emt 0:00:02]} Qc6+ {[%emt 0:
00:13]} 20. Qf3 {[%emt 0:00:31]} Nd5 {[%emt 0:00:13]} 21. Rfb1 {[%emt 0:01:28]}
Rb7 {[%emt 0:00:59]} 22. Bc1 {[%emt 0:04:52]} Rd8 {[%emt 0:01:43]} 23. Ra5 {
[%emt 0:01:09]} Bb4 {[%emt 0:00:20]} 24. Nxd5 {[%emt 0:00:12]} exd5 {[%emt 0:
00:45]} 25. Ra2 {[%emt 0:00:01]} Qg6 {[%emt 0:00:21]} 26. Rba1 {[%emt 0:00:35]}
Qxc2 {[%emt 0:02:01]} 27. Rxa6 {[%emt 0:00:01]} c3 {[%emt 0:00:03]} 28. bxc3 {
[%emt 0:02:06]} Bxc3 {[%emt 0:00:08]} 29. Ra8 {[%emt 0:00:02]} Rbd7 {[%emt 0:
00:56]} 30. Rxd8+ {[%emt 0:00:02]} Rxd8 {[%emt 0:00:01]} 31. Ra7 {[%emt 0:00:
02]} Bxd4 {[%emt 0:00:45]} 32. Qxf7+ {[%emt 0:00:06]} Kh7 {[%emt 0:00:33]} 33.
Rc7 {[%emt 0:01:20]} Qe4+ {[%emt 0:00:12]} 34. Qf3 {[%emt 0:00:29]} Qxf3+ {
[%emt 0:00:40]} 35. Kxf3 {[%emt 0:00:01]} Rf8+ {[%emt 0:00:01]} 36. Bf4 {
[%emt 0:00:02]} Kg8 {[%emt 0:00:33]} 37. Kg2 {[%emt 0:00:19]} g5 {[%emt 0:00:
11]} 38. Be3 {[%emt 0:00:03]} Bxe3 {[%emt 0:00:01]} 39. fxe3 {[%emt 0:00:01]}
Re8 {[%emt 0:00:00]} 40. Kf3 {[%emt 0:00:02]} Re5 {[%emt 0:00:10]} 41. Rd7 {
[%emt 0:00:19]} Kh8 {[%emt 0:00:07]} 42. g4 {[%emt 0:00:11]} Kg8 {[%emt 0:00:
05]} 43. Ke2 {[%emt 0:00:01]} Kh8 {[%emt 0:00:09]} 44. Kd3 {[%emt 0:00:01]} Kg8
{[%emt 0:00:02]} 45. Kd2 {[%emt 0:00:12]} Kh8 {[%emt 0:00:05]} 46. Ke2 {
[%emt 0:00:01]} Kg8 {[%emt 0:00:03]} 47. Kd3 {[%emt 0:00:01]} Kh8 {[%emt 0:00:
06]} 48. Rf7 {[%emt 0:00:04]} Kg8 {[%emt 0:00:30]} 49. Rf3 {[%emt 0:00:03]} Re7
{[%emt 0:00:29]} 50. Kd4 {[%emt 0:00:03]} Rd7 {[%emt 0:00:10]} 51. Rf5 {
[%emt 0:00:01]} Ra7 {[%emt 0:00:04]} 52. Rxd5 {[%emt 0:00:04]} Ra1 {[%emt 0:00:
08]} 53. Rf5 {[%emt 0:00:17]} Rh1 {[%emt 0:00:02]} 54. Rf3 Kg7 55. e4 {[%emt 0:
00:10]} Kg6 {[%emt 0:00:01]} 56. e5 {[%emt 0:00:12]} Rd1+ {[%emt 0:00:07]} 57.
Kc5 {[%emt 0:00:01]} Rd2 {[%emt 0:00:24]} 58. e6 {[%emt 0:00:09]} h5 {[%emt 0:
00:10]} 59. gxh5+ {[%emt 0:00:07]} Kxh5 {[%emt 0:00:01]} 60. e7 {[%emt 0:00:04]
} Re2 {[%emt 0:00:01]} 61. Kd6 {[%emt 0:00:01]} Kh4 {[%emt 0:00:22]} 62. Kd7 {
[%emt 0:00:02]} Rd2+ {[%emt 0:00:01]} 63. Ke8 {[%emt 0:00:02]} Ra2 {[%emt 0:00:
16]} 64. Kf8 {[%emt 0:00:05]} Ra8+ 65. e8=Q {[%emt 0:00:05]} Rxe8+ {[%emt 0:00:
04]} 66. Kxe8 {[%emt 0:00:01]} 1-0